bitfinex/quotes_ETHUSD_20250913
["timestamp","ask_amount","ask_price","bid_price","bid_amount"]
[1757791482827,0.002,4638.1,4638.0,14.11185618]
[1757791483143,0.002,4638.1,4638.0,14.19810034]
[1757791486218,0.002,4638.9,4638.3,0.792]
[1757791486420,0.002,4638.9,4638.8,5.94772993]
[1757791486629,0.002,4638.9,4638.8,11.28134954]
[1757791486940,0.002,4638.9,4638.8,11.92879859]
[1757791488747,0.002,4638.9,4638.8,12.03432332]
[1757791489910,0.002,4638.9,4638.8,12.03332332]
[1757791491039,0.002,4638.9,4638.8,11.59582332]
[1757791491345,0.3036,4638.9,4638.8,6.94983551]
[1757791491525,0.3036,4638.9,4638.8,10.55083551]
[1757791492943,0.002,4638.9,4638.8,10.84503551]
[1757791493122,0.002,4638.9,4638.8,12.39589984]
[1757791493921,0.002,4638.9,4638.8,8.79489984]
[1757791494119,0.002,4638.9,4638.8,12.39489984]
[1757791496335,0.002,4638.9,4638.8,12.50209984]
[1757791503729,0.002,4639.4,4639.2,5.94754405]
[1757791503934,0.002,4639.4,4639.2,12.60738618]
[1757791504152,0.002,4639.4,4639.2,13.00878618]
[1757791504465,0.002,4639.4,4639.2,14.37448363]
[1757791504676,0.002,4639.8,4639.3,3.0]
[1757791504848,0.002,4639.8,4639.7,2.94731176]
[1757791505037,0.002,4639.8,4639.7,11.19413931]
[1757791505236,0.002,4639.8,4639.7,11.1725862]
[1757791505557,0.002,4639.8,4639.7,11.6208862]
[1757791506660,0.002,4639.8,4639.7,11.05529839]
[1757791506970,0.3036,4639.8,4639.7,11.05529839]
[1757791507270,0.08,4640.8,4640.7,5.94684732]
[1757791507566,0.08,4640.8,4640.7,10.35302359]
[1757791507753,0.1798,4640.8,4640.7,10.35302359]
[1757791508461,0.1798,4640.8,4640.7,10.84942359]
[1757791509050,0.6762,4640.8,4640.7,5.65124732]
[1757791509252,1.121,4640.8,4640.7,8.76084732]
[1757791510366,0.1798,4640.8,4640.7,8.76084732]
[1757791510740,0.1798,4640.8,4640.7,9.03223513]
[1757791515341,0.1818,4640.8,4640.7,8.76084732]
[1757791517274,0.1818,4640.8,4640.7,8.86804732]
[1757791518574,0.1818,4640.8,4640.7,8.86604732]
[1757791519643,0.1818,4640.8,4640.7,8.86504732]
[1757791524277,0.1818,4640.8,4640.7,10.17780359]
[1757791524479,0.1818,4640.8,4640.7,10.62260359]
[1757791527889,0.082,4640.8,4640.7,10.91230359]
[1757791528190,0.4711,4641.7,4641.2,2.15461518]
[1757791528377,0.4381,4641.6,4641.2,8.75361518]
[1757791528578,0.1119,4641.3,4641.2,8.86081518]
[1757791531387,0.002,4641.3,4641.2,11.21766495]
[1757791532391,0.002,4641.3,4641.2,10.72526495]
[1757791532587,0.002,4641.3,4641.2,11.21766495]
[1757791535874,0.002,4641.3,4641.2,10.72526495]
[1757791538101,0.1119,4641.3,4641.2,9.95936495]
[1757791538510,0.002,4641.3,4641.2,9.95936495]
[1757791538685,0.002,4641.3,4641.2,11.61236495]
[1757791540034,0.002,4641.3,4641.2,8.01636495]
[1757791540208,0.002,4641.3,4641.2,11.61236495]
[1757791541607,0.002,4641.3,4641.2,12.37526495]
[1757791542178,0.581,4641.3,4641.2,8.3542]
[1757791542379,1.0158,4641.3,4641.2,10.50881518]
[1757791542685,0.581,4641.3,4641.2,8.3542]
[1757791543505,0.581,4641.3,4641.2,8.85581518]
[1757791544009,0.581,4641.3,4641.2,6.7012]
[1757791545284,0.1119,4641.3,4641.2,0.1072]
[1757791545489,1.0158,4641.3,4641.1,3.593]
[1757791545689,0.4914,4641.2,4641.1,3.593]
[1757791545913,0.1131,4641.2,4641.1,3.593]
[1757791546218,0.002,4641.3,4641.1,4.3259]
[1757791546420,0.002,4641.3,4641.2,0.02154615]
[1757791546719,0.002,4641.3,4641.1,3.593]
[1757791549132,0.099,4641.2,4641.1,3.593]
[1757791550335,0.002,4641.3,4641.1,3.593]
[1757791550690,0.002,4641.3,4641.0,2.15468909]
[1757791550938,0.002,4641.3,4641.1,3.598]
[1757791551105,0.002,4641.3,4641.2,2.48866133]
[1757791551422,0.002,4641.3,4641.2,4.49977787]
[1757791551608,0.002,4641.3,4641.2,4.74960354]
[1757791555495,0.002,4641.3,4641.2,4.85680354]
[1757791555894,0.002,4641.3,4641.2,4.58543172]
[1757791556148,0.115,4641.3,4641.2,5.85881518]
[1757791557000,0.002,4641.3,4641.2,2.26181518]
[1757791557300,0.002,4641.3,4641.2,5.88136133]
[1757791557520,0.002,4641.3,4641.2,5.85981518]
[1757791560841,0.002,4641.3,4641.2,5.94601623]
[1757791561541,0.115,4641.3,4641.2,3.79140105]
[1757791562417,0.115,4641.3,4641.2,0.19340105]
[1757791562635,0.115,4641.3,4641.2,3.78940105]
[1757791563617,0.115,4641.3,4641.2,5.94401623]
[1757791565348,0.115,4641.3,4641.2,3.78940105]
[1757791565643,0.6023,4641.3,4641.2,0.08620105]
[1757791565831,1.30967376,4641.3,4640.9,1.653]
[1757791566148,0.919,4641.2,4641.0,3.594]
[1757791566310,0.1162,4641.1,4641.0,3.594]
[1757791566512,1.032,4641.1,4641.0,3.594]
[1757791567156,1.032,4641.1,4640.8,0.001]
[1757791567315,0.4873,4641.0,4640.9,3.594]
[1757791567513,0.6067,4641.0,4640.9,3.594]
[1757791567948,0.1194,4641.0,4640.9,3.594]
[1757791571628,0.1194,4641.0,4640.8,0.001]
[1757791571849,0.1194,4641.0,4640.8,3.595]
[1757791572966,0.1194,4641.0,4640.8,0.001]
[1757791573255,0.1194,4641.0,4640.8,3.594]
[1757791575752,2.63505446,4640.9,4640.8,0.001]
[1757791575934,0.9057,4640.9,4640.8,0.001]
[1757791576137,0.1224,4640.9,4640.8,0.001]
[1757791580821,2.75745446,4640.9,4640.8,0.001]
[1757791581026,3.17985446,4640.9,4640.8,0.001]
[1757791581459,3.49783991,4640.9,4640.8,0.001]
[1757791582156,3.49983991,4640.9,4640.8,0.501]
[1757791583264,7.09183991,4640.9,4640.8,0.501]
[1757791583457,7.41351241,4640.9,4640.8,0.501]
[1757791584871,7.41330772,4640.9,4640.8,0.501]
[1757791585243,7.21247238,4640.9,4640.8,0.501]
[1757791585432,7.41326516,4640.9,4640.8,0.501]
[1757791585762,1.296,4641.3,4640.8,5.44979713]
[1757791585763,0.002,4641.3,4640.8,5.44979713]
[1757791585968,0.002,4641.3,4640.9,1.79897689]
[1757791586174,0.002,4641.3,4641.0,5.76469086]
[1757791586348,0.002,4641.3,4641.2,0.3145]
[1757791586756,0.002,4641.3,4641.2,1.2598]
[1757791586966,0.002,4641.3,4641.2,1.34600383]
[1757791588334,0.002,4641.3,4641.2,3.50061901]
[1757791588667,0.002,4641.3,4641.2,4.21168091]
[1757791588880,0.002,4641.3,4641.2,2.05706573]
[1757791590091,0.002,4641.3,4641.2,4.21168091]
[1757791590279,0.002,4641.3,4641.2,4.23322706]
[1757791590776,0.002,4641.3,4641.2,2.07861188]
[1757791590967,0.002,4641.3,4641.2,2.05706573]
[1757791591174,0.002,4641.3,4641.2,4.21168091]
[1757791591562,0.002,4641.3,4641.2,2.05706573]
[1757791591759,0.002,4641.9,4641.3,30.0]
[1757791591959,0.002,4642.3,4642.2,2.94615104]
[1757791592181,0.08,4642.8,4642.4,2.15403678]
[1757791592359,0.08,4642.8,4642.6,2.94596545]
[1757791592566,0.08,4642.8,4642.7,6.29559487]
[1757791592757,0.08,4642.8,4642.7,7.6845544]
[1757791592952,0.08,4642.8,4642.7,9.40627625]
[1757791593169,0.08,4642.8,4642.7,9.85263358]
[1757791595254,0.08,4642.8,4642.7,9.40897405]
[1757791595881,0.08,4642.8,4642.7,9.51617405]
[1757791596397,0.08,4642.8,4642.7,9.23597543]
[1757791598278,0.08,4642.8,4642.7,12.87197543]
[1757791599085,0.08,4642.8,4642.7,8.44397543]
[1757791599280,0.08,4642.8,4642.7,12.07997543]
[1757791599818,0.08,4642.8,4642.7,8.44397543]
[1757791599996,0.08,4642.8,4642.7,12.07897543]
[1757791600173,0.082,4642.8,4642.7,12.07897543]
[1757791601506,0.082,4642.8,4642.7,12.52263496]
[1757791604419,0.082,4642.8,4642.7,8.88763496]
[1757791604628,0.082,4642.8,4642.7,12.52063496]
[1757791607403,0.082,4642.8,4642.7,10.81417543]
[1757791607699,0.082,4642.8,4642.7,10.81317543]
[1757791607902,0.082,4642.8,4642.7,5.77695358]
[1757791608095,0.1949,4642.8,4642.7,9.23979487]
[1757791608407,0.082,4642.8,4642.7,9.23979487]
[1757791609803,0.1949,4642.8,4642.7,9.23979487]
[1757791609979,0.082,4642.8,4642.7,9.23979487]
[1757791610992,0.2036,4642.8,4642.7,9.23779487]
[1757791611196,0.2036,4642.8,4642.6,0.001]
[1757791611197,0.6587,4642.8,4642.6,0.001]
[1757791611400,0.8823,4642.7,4642.6,0.001]
[1757791611873,1.0069,4642.7,4642.6,0.001]
[1757791612889,0.5797,4642.7,4642.6,0.001]
[1757791613200,0.1246,4642.7,4642.6,0.001]
[1757791616079,0.1216,4642.7,4642.6,0.001]
[1757791621588,0.5767,4642.7,4642.6,0.001]
[1757791622216,0.1216,4642.7,4642.6,0.001]
[1757791623718,0.082,4642.8,4642.6,0.001]
[1757791627837,0.1216,4642.7,4642.6,0.001]
[1757791628596,1.0039,4642.7,4642.6,0.001]
[1757791628802,3.48179758,4642.7,4642.6,0.001]
[1757791629115,1.32787853,4642.7,4642.6,0.001]
[1757791629434,1.0039,4642.7,4642.6,0.001]
[1757791629610,0.5767,4642.7,4642.6,0.001]
[1757791630205,0.1216,4642.7,4642.6,0.001]
[1757791631938,0.1892,4642.8,4642.6,0.001]
[1757791633305,0.1216,4642.7,4642.6,0.001]
[1757791635117,0.1236,4642.7,4642.6,0.001]
[1757791639958,0.002,4642.7,4642.6,0.7807]
[1757791640181,0.002,4642.7,4642.6,4.1952008]
[1757791640827,0.002,4642.7,4642.6,1.2479]
[1757791641029,0.002,4642.7,4642.6,1.26943965]
[1757791641223,0.002,4642.7,4642.6,3.4234051]
[1757791642168,0.002,4642.7,4642.6,4.28470597]
[1757791642373,0.002,4642.7,4642.6,7.30624562]
[1757791642537,0.002,4642.7,4642.6,7.28470597]
[1757791644042,0.002,4642.7,4642.6,6.95961348]
[1757791647640,0.002,4642.7,4642.6,7.6971155]
[1757791648652,0.002,4642.7,4642.6,10.56961348]
[1757791649470,0.002,4642.7,4642.6,6.95961348]
[1757791649795,0.002,4642.7,4642.6,10.56961348]
[1757791649963,0.002,4642.7,4642.6,10.67681348]
[1757791651761,0.002,4642.7,4642.6,7.06681348]
[1757791652400,0.002,4642.7,4642.6,10.20761348]
[1757791652589,0.002,4642.7,4642.6,10.67481348]
[1757791655889,0.002,4642.7,4642.6,7.06681348]
[1757791656197,0.002,4642.7,4642.6,10.67381348]
[1757791656786,0.002,4642.7,4642.6,10.99890597]
[1757791660798,0.002,4642.7,4642.6,10.99690597]
[1757791661105,0.002,4642.7,4642.6,11.49690597]
[1757791661307,0.002,4642.7,4642.6,11.9093155]
[1757791666096,0.002,4642.7,4642.6,11.9063155]
[1757791669898,4.27636416,4642.7,4642.2,0.001]
[1757791670067,3.0,4642.6,4642.2,0.001]
[1757791670388,2.15410464,4642.3,4642.2,0.001]
[1757791670590,2.8676513,4642.3,4642.2,0.001]
[1757791670762,4.51023281,4642.3,4642.2,0.001]
[1757791671274,7.51023281,4642.3,4642.2,0.001]
[1757791671504,7.63096384,4642.3,4642.2,0.001]
[1757791671717,4.63096384,4642.3,4642.2,0.001]
[1757791672020,5.11593425,4642.3,4642.2,0.001]
[1757791672882,4.63096384,4642.3,4642.2,0.001]
[1757791674216,5.09022224,4642.3,4642.2,0.001]
[1757791674515,5.08934764,4642.3,4642.2,0.001]
[1757791674714,4.63008924,4642.3,4642.2,0.001]
[1757791676399,4.62982235,4642.3,4642.2,0.001]
[1757791677002,7.62982235,4642.3,4642.2,0.001]
[1757791680542,11.14049244,4642.3,4642.2,0.001]
[1757791681051,7.50949244,4642.3,4642.2,0.001]
[1757791681191,10.90029244,4642.3,4642.2,0.001]
[1757791681612,10.986505,4642.3,4642.2,0.001]
[1757791683195,10.530305,4642.3,4642.2,0.001]
[1757791684532,10.529305,4642.3,4642.2,0.001]
[1757791685800,10.44309244,4642.3,4642.2,0.001]
[1757791686098,10.44209244,4642.3,4642.2,0.001]
[1757791689037,10.56211335,4642.3,4642.2,0.001]
[1757791693945,17.07711334,4642.3,4642.2,0.001]
[1757791696015,17.07689228,4642.3,4642.2,0.001]
[1757791697637,21.06645644,4642.3,4642.2,0.001]
[1757791697804,3.05335104,4642.2,4642.1,0.001]
[1757791698005,11.9798387,4642.2,4642.1,0.001]
[1757791698202,2.15433667,4641.8,4641.7,0.001]
[1757791698406,11.21900697,4641.8,4641.7,0.001]
[1757791698609,15.25050697,4641.8,4641.7,0.001]
[1757791699003,15.33672938,4641.8,4641.7,0.001]
[1757791699240,16.74732883,4641.8,4641.7,0.001]
[1757791704509,13.47776467,4641.8,4641.7,0.001]
[1757791704906,13.23716467,4641.8,4641.7,0.001]
[1757791706240,12.75636467,4641.8,4641.7,0.001]
[1757791706683,12.44626467,4641.8,4641.7,0.001]
[1757791707179,11.98284673,4641.8,4641.7,0.001]
[1757791708683,11.98347622,4641.8,4641.7,0.001]
[1757791711079,11.98410123,4641.8,4641.7,0.001]
[1757791711395,11.89187882,4641.8,4641.7,0.7738]
[1757791711593,11.89187882,4641.8,4641.7,1.2391]
[1757791711594,7.32969731,4641.8,4641.7,1.2391]
[1757791711969,10.94469731,4641.8,4641.7,1.2391]
[1757791718732,10.94517347,4641.8,4641.7,1.2391]
[1757791722195,10.94517347,4641.8,4641.7,0.001]
[1757791722392,11.25747347,4641.8,4641.7,0.001]
[1757791722613,12.28654761,4641.8,4641.7,0.001]
[1757791725294,12.59814761,4641.8,4641.7,0.001]
[1757791725524,13.0617936,4641.8,4641.7,0.001]
[1757791726331,12.75028664,4641.8,4641.7,0.001]
[1757791727603,12.75028664,4641.8,4641.7,0.7587]
[1757791727941,12.75028664,4641.8,4641.7,1.1905]
[1757791729165,4.7939125,4641.8,4641.7,1.1905]
[1757791729353,7.93717347,4641.8,4641.7,1.1905]
[1757791730250,7.73608202,4641.8,4641.7,1.1905]
[1757791730642,7.73608202,4641.8,4641.7,0.7299]
[1757791731326,7.73608202,4641.8,4641.7,1.2044]
[1757791731851,7.73608202,4641.8,4641.7,0.7299]
[1757791732353,7.73608202,4641.8,4641.7,1.2044]
[1757791733955,7.73645283,4641.8,4641.7,1.2044]
[1757791740260,7.73645283,4641.8,4641.7,0.001]
[1757791741065,7.73645283,4641.8,4641.7,0.3149]
[1757791741874,8.17975283,4641.8,4641.7,0.3149]
[1757791742337,8.17975283,4641.8,4641.7,0.7582]
[1757791749585,8.17975283,4641.8,4641.7,0.001]
[1757791751482,9.55254281,4641.8,4641.7,0.001]
[1757791751678,9.23042665,4641.8,4641.7,0.001]
[1757791751979,9.25977828,4641.8,4641.7,0.001]
[1757791752161,8.1797883,4641.8,4641.7,0.001]
[1757791754582,8.2787883,4641.8,4641.7,0.001]
[1757791754783,8.1797883,4641.8,4641.7,0.001]
[1757791756074,8.1747883,4641.8,4641.7,0.7923]
[1757791756387,8.1747883,4641.8,4641.7,0.001]
[1757791757602,4.5727883,4641.8,4641.7,0.7923]
[1757791757770,8.1747883,4641.8,4641.7,1.2331]
[1757791767317,8.17491625,4641.8,4641.7,1.2331]
[1757791767823,9.36752963,4641.8,4641.7,0.001]
[1757791769427,9.25442963,4641.8,4641.7,0.001]
[1757791770091,9.36752963,4641.8,4641.7,0.001]
[1757791771718,9.3675219,4641.8,4641.7,0.001]
[1757791774524,9.36757491,4641.8,4641.7,0.001]
[1757791783238,9.25447491,4641.8,4641.7,0.001]
[1757791783615,9.25447491,4641.8,4641.7,0.2939]
[1757791783811,9.25447491,4641.8,4641.7,1.2331]
[1757791786246,9.25446929,4641.8,4641.7,1.2331]
[1757791786951,9.25446929,4641.8,4641.7,0.7347]
[1757791787315,9.25446929,4641.8,4641.7,0.2939]
[1757791788141,9.25446929,4641.8,4641.7,0.001]
[1757791799693,9.25446929,4641.8,4641.7,1.223]
[1757791799694,1.97531924,4641.8,4641.7,1.223]
[1757791799843,3.92231924,4641.8,4641.7,1.223]
[1757791801041,0.32231924,4641.8,4641.7,1.223]
[1757791801241,3.80145304,4641.8,4641.7,1.223]
[1757791803777,3.6,4641.8,4641.7,1.223]
[1757791804091,3.80137282,4641.8,4641.7,1.60733666]
[1757791804312,3.6,4641.8,4641.7,1.223]
[1757791804448,3.80137282,4641.8,4641.7,1.223]
[1757791804781,3.6,4641.8,4641.7,1.223]
[1757791805077,0.20137282,4641.8,4641.7,1.223]
[1757791805283,3.6,4641.8,4641.7,1.223]
[1757791808170,3.599,4641.8,4641.7,1.58367502]
[1757791810382,3.599,4641.8,4641.7,1.223]
[1757791811069,0.43132984,4642.1,4641.7,1.223]
[1757791811279,3.599,4642.0,4641.8,0.9111]
[1757791811472,3.92112984,4642.0,4641.9,1.222]
[1757791811787,3.599,4642.0,4641.9,1.222]
[1757791814491,3.9208811,4642.0,4641.9,1.222]
[1757791815992,6.07512496,4642.0,4641.9,0.3109]
[1757791817794,3.9208811,4642.0,4641.9,0.3109]
[1757791818200,3.9208811,4642.0,4641.9,0.7664]
[1757791818490,3.9208811,4642.0,4641.9,1.238]
[1757791818491,3.599,4642.0,4641.9,1.238]
[1757791820862,3.599,4642.0,4641.9,0.2866]
[1757791821067,3.599,4642.0,4641.9,1.2137]
[1757791821680,3.9208811,4642.0,4641.9,1.2137]
[1757791822063,3.9208811,4642.0,4641.9,0.7421]
[1757791822298,3.9208811,4642.0,4641.8,0.001]
[1757791822299,4.2102811,4642.0,4641.8,0.001]
[1757791822479,2.15429026,4641.9,4641.8,0.001]
[1757791822682,2.47617136,4641.9,4641.8,0.001]
[1757791822894,2.76527136,4641.9,4641.8,0.001]
[1757791828593,4.27954075,4641.9,4641.8,0.001]
[1757791828782,5.02364075,4641.9,4641.8,0.001]
[1757791829305,4.27954075,4641.9,4641.8,0.001]
[1757791829517,2.76527136,4641.9,4641.8,0.001]
[1757791831318,6.07417136,4641.9,4641.8,0.001]
[1757791831505,3.9198811,4641.9,4641.8,0.2876]
[1757791831709,3.79917569,4641.9,4641.8,0.7431]
[1757791832021,3.9198811,4641.9,4641.8,0.7431]
[1757791832520,6.07417136,4641.9,4641.8,0.7431]
[1757791832886,6.07417136,4641.9,4641.8,0.2876]
[1757791833141,6.07417136,4641.9,4641.8,0.001]
[1757791834793,3.9198811,4641.9,4641.8,0.001]
[1757791835330,6.17317136,4641.9,4641.8,0.001]
[1757791836107,7.65760857,4641.9,4641.8,0.001]
[1757791836320,8.14030857,4641.9,4641.8,0.001]
[1757791836519,8.58980857,4641.9,4641.8,0.001]
[1757791837125,8.14030857,4641.9,4641.8,0.001]
[1757791838038,7.65778462,4641.9,4641.8,0.001]
[1757791839837,8.14048462,4641.9,4641.8,0.001]
[1757791840137,7.65778462,4641.9,4641.8,0.001]
[1757791842326,9.31078462,4641.9,4641.8,0.001]
[1757791843053,10.24298462,4641.9,4641.8,0.001]
[1757791843538,10.3292035,4641.9,4641.8,0.001]
[1757791843734,13.3292035,4641.9,4641.8,0.001]
[1757791843939,13.79306762,4641.9,4641.8,0.001]
[1757791844442,13.3292035,4641.9,4641.8,0.001]
[1757791845239,14.58490379,4641.9,4641.8,0.001]
[1757791845437,14.58476633,4641.9,4641.8,0.001]
[1757791846814,21.09976632,4641.9,4641.8,0.001]
[1757791847940,20.35546632,4641.9,4641.8,0.001]
[1757791848163,20.06756632,4641.9,4641.8,0.001]
[1757791848459,15.21500349,4641.9,4641.8,0.3059]
[1757791848610,18.81200349,4641.9,4641.8,0.7481]
[1757791848934,18.81200349,4641.9,4641.8,0.001]
[1757791849118,15.21500349,4641.9,4641.8,0.001]
[1757791849437,18.81200349,4641.9,4641.8,0.001]
[1757791849646,18.81200349,4641.9,4641.8,0.2961]
[1757791849845,8.57627602,4641.9,4641.8,1.2107]
[1757791850014,5.57205715,4641.9,4641.8,1.2107]
[1757791850338,5.45117569,4641.9,4641.8,1.2107]
[1757791851827,5.25,4641.9,4641.8,1.2107]
[1757791852033,1.653,4641.9,4641.8,1.2107]
[1757791852236,5.25,4641.9,4641.8,1.2107]
[1757791852735,1.653,4641.9,4641.8,1.2107]
[1757791852934,5.25,4641.9,4641.8,1.2107]
[1757791854130,7.72634741,4641.9,4641.8,1.2107]
[1757791854712,5.57205715,4641.9,4641.8,1.2107]
[1757791854909,7.72634741,4641.9,4641.8,1.2107]
[1757791856142,5.57205715,4641.9,4641.8,1.2107]
[1757791856347,5.25,4641.9,4641.8,1.2107]
[1757791857046,0.32184907,4642.0,4641.8,1.33197]
[1757791857345,0.002,4642.1,4641.9,0.0215429]
[1757791857644,3.597,4642.0,4641.9,0.32184907]
[1757791857848,3.597,4642.0,4641.9,1.53154907]
[1757791858043,3.597,4642.0,4641.9,1.9125689]
[1757791860768,3.596,4642.0,4641.9,1.53154907]
[1757791861343,3.596,4642.0,4641.9,1.2097]
[1757791861551,3.596,4642.0,4641.9,0.7538]
[1757791861733,3.596,4642.0,4641.9,0.2951]
[1757791861934,3.596,4642.0,4641.9,0.751]
[1757791862339,3.596,4642.0,4641.9,1.2097]
[1757791864455,3.596,4642.0,4641.9,1.54641262]
[1757791864662,3.596,4642.0,4641.9,3.36399026]
[1757791865384,3.596,4642.0,4641.9,1.2097]
[1757791865701,3.596,4642.0,4641.9,3.36399021]
[1757791866840,3.596,4642.0,4641.9,1.2097]
[1757791867345,3.596,4642.0,4641.9,3.36399026]
[1757791868871,3.596,4642.0,4641.9,3.92684746]
[1757791870896,0.002,4642.1,4642.0,2.15424386]
[1757791871076,0.002,4642.1,4642.0,2.17578629]
[1757791871267,0.002,4642.1,4642.0,3.38548629]
[1757791873490,0.002,4642.1,4642.0,3.49268629]
[1757791873667,0.002,4642.1,4642.0,4.11387178]
[1757791877285,0.002,4642.1,4642.0,4.38647783]
[1757791877481,0.002,4642.1,4642.0,5.03276004]
[1757791877800,0.002,4642.1,4642.0,5.01121761]
[1757791880090,0.002,4642.1,4642.0,4.73861156]
[1757791887512,0.002,4642.1,4642.0,8.95333967]
[1757791887716,0.002,4642.1,4642.0,8.69601761]
[1757791890316,0.002,4642.1,4642.0,8.69701761]
[1757791890758,0.002,4642.1,4642.0,38.69701761]
[1757791895844,0.002,4642.1,4642.0,38.68001761]
[1757791897184,0.002,4643.1,4642.0,38.68001761]
[1757791897185,0.002,4643.1,4642.4,3.792]
[1757791897480,0.002,4643.1,4642.3,2.15410464]
[1757791897481,0.002,4643.1,4643.0,6.05297988]
[1757791897682,0.002,4643.1,4643.0,9.94197988]
[1757791897977,0.002,4643.1,4643.0,10.83397988]
[1757791898147,0.002,4643.1,4643.0,11.31177988]
[1757791901692,0.002,4643.1,4643.0,10.87287988]
[1757791901995,0.002,4643.1,4643.0,12.7797527]
[1757791904196,0.002,4643.1,4643.0,12.3408527]
[1757791904393,0.002,4643.1,4643.0,12.7797527]
[1757791904561,0.002,4643.1,4643.0,12.3408527]
[1757791905087,0.002,4643.1,4643.0,12.7797527]
[1757791905300,0.002,4643.1,4643.0,13.05235875]
[1757791916062,0.002,4643.1,4643.0,43.05235875]
[1757791919079,0.002,4643.1,4643.0,37.9740527]
[1757791919380,0.002,4643.1,4643.0,41.5650527]
[1757791919989,0.002,4643.1,4643.0,37.9740527]
[1757791920194,0.002,4643.1,4643.0,41.5650527]
[1757791923807,1.0373,4643.1,4643.0,7.1820527]
[1757791923994,1.0373,4643.1,4643.0,10.7730527]
[1757791929818,0.5878,4643.1,4643.0,10.7730527]
[1757791930620,0.101,4643.1,4643.0,10.7730527]
[1757791931617,0.002,4643.1,4643.0,10.7730527]
[1757791931914,0.101,4643.1,4643.0,10.7730527]
[1757791932423,0.002,4643.1,4643.0,10.6658527]
[1757791932583,0.002,4643.1,4643.0,10.93845875]
[1757791934117,0.1045,4643.1,4643.0,10.93845875]
[1757791937225,0.002,4643.1,4643.0,10.93845875]
[1757791941536,0.002,4643.1,4643.0,12.16055875]
[1757791942210,0.002,4643.1,4643.0,11.67695875]
[1757791942418,0.002,4643.1,4643.0,11.78415875]
[1757791943042,0.002,4643.1,4643.0,13.05975875]
[1757791947416,0.002,4643.1,4643.0,13.36308081]
[1757791948045,0.002,4643.1,4643.0,14.90709477]
[1757791949330,0.002,4643.1,4643.0,14.60377271]
[1757791950639,0.002,4643.1,4643.0,44.60377271]
[1757791950982,0.002,4643.1,4643.0,43.05975875]
[1757791951127,0.002,4643.1,4643.0,44.60738537]
[1757791951463,0.002,4643.1,4643.0,43.05975875]
[1757791962693,0.002,4643.1,4643.0,13.05975875]
[1757791962991,0.002,4643.1,4643.0,43.05975875]
[1757791966098,0.002,4643.1,4643.0,44.12283112]
[1757791966898,0.002,4643.1,4643.0,44.59013112]
[1757791967263,0.002,4643.1,4643.0,43.04345875]
[1757791968278,0.002,4643.1,4643.0,44.59028762]
[1757791968489,0.002,4643.1,4643.0,43.04345875]
[1757791968690,0.002,4643.1,4643.0,44.59029127]
[1757791968995,0.002,4643.1,4643.0,44.590291]
[1757791969170,0.002,4643.1,4643.0,13.04345875]
[1757791969375,0.002,4643.1,4643.0,43.04345875]
[1757791972319,0.002,4643.1,4643.0,42.60955875]
[1757791972502,0.002,4643.1,4643.0,43.04155875]
[1757791973599,0.002,4643.1,4643.0,42.14225875]
[1757791973901,0.002,4643.1,4643.0,43.03415875]
[1757791974273,0.002,4643.1,4643.0,42.57425875]
[1757791975880,0.002,4643.1,4643.0,43.03415875]
[1757791977806,0.002,4643.1,4643.0,41.83465875]
[1757791978829,0.002,4643.1,4643.0,41.83365875]
[1757791979112,0.002,4643.1,4643.0,42.57345875]
[1757791980522,0.12,4643.1,4643.0,37.9740527]
[1757791980810,1.0365,4643.1,4643.0,43.10932304]
[1757791981015,0.6058,4643.1,4643.0,43.10932304]
[1757791981195,0.6058,4643.1,4643.0,41.5610527]
[1757791981591,0.6058,4643.1,4643.0,13.10912369]
[1757791982405,0.12,4643.1,4643.0,13.10912369]
[1757791983078,0.12,4643.1,4643.0,9.52212369]
[1757791983276,0.12,4643.1,4643.0,13.10912369]
[1757791987280,0.002,4643.1,4643.0,13.10912369]
[1757791987514,0.002,4643.1,4643.0,11.5610527]
[1757791990714,0.002,4643.1,4643.0,13.10855089]
[1757791992555,0.12,4643.1,4643.0,13.10855089]
[1757791992755,1.0365,4643.1,4643.0,13.10755089]
[1757791992957,0.12,4643.1,4643.0,13.10755089]
[1757791993469,0.002,4643.1,4643.0,13.10755089]
[1757791996145,0.002,4643.1,4643.0,9.79415694]
[1757791996448,0.002,4643.1,4643.0,13.38015694]
[1757792001951,0.002,4643.1,4643.0,9.79415694]
[1757792002260,0.002,4643.1,4643.0,13.38015694]
[1757792004462,0.002,4643.1,4643.0,13.67015694]
[1757792004666,0.002,4643.1,4643.0,12.58575875]
[1757792005566,0.002,4643.1,4643.0,13.03745875]
[1757792005934,0.002,4643.1,4643.0,12.58575875]
[1757792006936,0.002,4643.1,4643.0,43.03745875]
[1757792007135,0.002,4643.1,4643.0,43.34078081]
[1757792007669,0.002,4644.1,4643.0,43.34078081]
[1757792007670,0.002,4644.1,4644.0,2.1533161]
[1757792007872,0.002,4644.1,4644.0,6.06084771]
[1757792008350,0.002,4644.1,4644.0,6.70684323]
[1757792009451,0.2919,4644.1,4644.0,6.70684323]
[1757792011338,0.002,4644.1,4644.0,6.70684323]
[1757792012540,0.002,4644.1,4644.0,7.45994323]
[1757792013043,0.002,4644.1,4644.0,6.99684323]
[1757792013374,0.002,4644.1,4644.0,6.70684323]
[1757792015993,0.1144,4644.1,4644.0,6.70684323]
[1757792017191,0.002,4644.1,4644.0,6.70684323]